fUST/lending_fUST_20250724
["ID","MTS","AMOUNT","RATE_DAILY","PERIOD"]
[374599940,1753369853200,-622.61,0.0002454,2]
[374599941,1753369853212,-568.76,0.00024541,2]
[374599942,1753369853222,-1345.73,0.00024541,2]
[374599943,1753369853231,-915.03,0.00024541,2]
[374599944,1753369853241,-550.98,0.00024542,2]
[374599945,1753369853251,-2764.12,0.00024542,2]
[374599946,1753369853260,-460.0,0.00024542,2]
[374599947,1753369853270,-460.0,0.00024542,2]
[374599948,1753369853279,-892.16,0.00024545,2]
[374599949,1753369853290,-520.87,0.00024545,2]
[374599950,1753369853300,-1355.64,0.00024545,2]
[374599951,1753369853310,-728.36,0.00024545,2]
[374599952,1753369853319,-1595.08,0.00024545,2]
[374599953,1753369853329,-470.01,0.00024545,2]
[374599954,1753369853339,-460.0,0.00024545,2]
[374599955,1753369853348,-206.0,0.0002457,2]
[374599956,1753369853357,-383.0,0.00024578,2]
[374599957,1753369853367,-598.0,0.00024652,2]
[374599958,1753369853376,-151.0,0.00024652,2]
[374599959,1753369853385,-300.0,0.00024657,2]
[374599960,1753369853394,-300.0,0.00024657,2]
[374599961,1753369853404,-300.0,0.00024657,2]
[374599962,1753369853413,-300.0,0.00024657,2]
[374599963,1753369853423,-427.9252346,0.00024657,2]
[374599964,1753369853432,-356.5334396,0.00024658,2]
[374599965,1753369853442,-1154.905217,0.00024658,2]
[374599966,1753369853451,-153.0,0.00024658,2]
[374599967,1753369853461,-356.6579434,0.00024658,2]
[374599968,1753369853470,-159.9507963,0.00024658,2]
[374599969,1753369853480,-154.6022915,0.00024658,2]
[374599970,1753369853489,-1155.10782,0.00024658,2]
[374599971,1753369853498,-153.0,0.00024658,2]
[374599972,1753369853507,-306.1586121,0.00024658,2]
[374599973,1753369853517,-159.9507963,0.00024658,2]
[374599974,1753369853526,-153.0,0.00024658,2]
[374599975,1753369853540,-353.129568,0.00024658,2]
[374599976,1753369853549,-2207.52044602,0.00024659,11]
[374599977,1753369853559,-383.0,0.00024668,2]
[374599978,1753369853569,-178.2667198,0.00024685,2]
[374599979,1753369853578,-319.1862312,0.00024685,2]
[374599980,1753369853587,-178.2667198,0.00024685,2]
[374599981,1753369853597,-178.2667198,0.00024685,2]
[374599982,1753369853607,-178.2667198,0.00024685,2]
[374599983,1753369853616,-800.0,0.00024692,2]
[374599984,1753369853626,-383.0,0.00024696,2]
[374599985,1753369853635,-269.0,0.00024716,2]
[374599986,1753369853644,-383.0,0.00024718,2]
[374599987,1753369853654,-1028.43058703,0.00024768,2]
[374599988,1753369853664,-4109.60862579,0.00024768,2]
[374599989,1753369853674,-155.465693,0.00024786,7]
[374599990,1753369853684,-151.0,0.000248,6]
[374599991,1753369853693,-155.465693,0.000248,24]
[374599992,1753369853703,-155.465693,0.000248,24]
[374599993,1753369853713,-24377.5452384,0.000248,2]
[374599994,1753369853723,-4092.03142468,0.000248,2]
[374599995,1753369853733,-155.465693,0.00024808,8]
[374599996,1753369853743,-1817.27,0.00024814,2]
[374599997,1753369853753,-622.61,0.00024814,2]
[374599998,1753369853762,-568.76,0.00024815,2]
[374599999,1753369853773,-1345.73,0.00024815,2]
[374600000,1753369853785,-915.03,0.00024815,2]
[374600001,1753369853795,-550.98,0.00024816,2]
[374600002,1753369853805,-2764.12,0.00024816,2]
[374600003,1753369853815,-460.0,0.00024816,2]
[374600004,1753369853827,-460.0,0.00024816,2]
[374600005,1753369853838,-892.16,0.00024819,2]
[374600006,1753369853849,-520.87,0.00024819,2]
[374600007,1753369853859,-1355.64,0.00024819,2]
[374600008,1753369853870,-728.36,0.00024819,2]
[374600009,1753369853888,-1595.08,0.00024819,2]
[374600010,1753369853904,-470.01,0.00024819,2]
[374600011,1753369853915,-460.0,0.00024819,2]
[374600012,1753369853926,-1619.98964485,0.00024838,2]
[374600013,1753369853937,-5090.07616374,0.00024838,2]
[374600014,1753369853947,-5000.0,0.00024838,2]
[374600015,1753369853958,-224.048,0.00024855,2]
[374600016,1753369853969,-150.0,0.00024855,2]
[374600017,1753369853979,-150.57,0.00024855,2]
[374600018,1753369853989,-150.0,0.00024855,2]
[374600019,1753369853999,-648.0,0.00024855,2]
[374600020,1753369854008,-2157.0,0.00024855,2]
[374600021,1753369854018,-969.0,0.00024855,2]
[374600022,1753369854029,-151.0,0.00024861,7]
[374600023,1753369854041,-2207.52044602,0.00024866,12]
[374600024,1753369854052,-500.0,0.00024873,2]
[374600025,1753369854063,-6282.55,0.00024876,10]
[374600026,1753369854075,-202.816415,0.00024877,8]
[374600027,1753369854085,-205.0,0.0002489,2]
[374600028,1753369854096,-206.0,0.0002489,2]
[374600029,1753369854106,-155.465693,0.00024892,2]
[374600030,1753369854116,-500.0,0.00024897,2]
[374600031,1753369854127,-200.0,0.00024899,2]
[374600032,1753369854137,-151.0,0.000249,7]
[374600033,1753369854147,-151.0,0.000249,7]
[374600034,1753369854158,-151.0,0.000249,7]
[374600035,1753369854168,-336.322816,0.000249,7]
[374600036,1753369854179,-336.322816,0.000249,7]
[374600037,1753369854189,-151.0,0.000249,7]
[374600038,1753369854199,-151.0,0.000249,7]
[374600039,1753369854214,-151.0,0.000249,7]
[374600040,1753369854225,-151.0,0.000249,7]
[374600041,1753369854235,-151.0,0.000249,7]
[374600042,1753369854247,-151.0,0.000249,7]
[374600043,1753369854257,-151.0,0.000249,7]
[374600044,1753369854267,-166.669096,0.000249,7]
[374600045,1753369854277,-166.669096,0.000249,7]
[374600046,1753369854288,-151.0,0.000249,7]
[374600047,1753369854300,-156.802872,0.000249,7]
[374600048,1753369854310,-156.802872,0.000249,7]
[374600049,1753369854320,-151.0,0.000249,7]
[374600050,1753369854330,-331.746401,0.000249,7]
[374600051,1753369854342,-151.0,0.000249,7]
[374600052,1753369854352,-331.746401,0.000249,7]
[374600053,1753369854362,-151.0,0.000249,7]
[374600054,1753369854373,-229.080533,0.000249,7]
[374600055,1753369854386,-229.080533,0.000249,7]
[374600056,1753369854396,-151.0,0.000249,7]
[374600057,1753369854407,-151.0,0.000249,7]
[374600058,1753369854417,-151.0,0.000249,7]
[374600059,1753369854428,-151.0,0.000249,7]
[374600060,1753369854439,-412.758341,0.000249,7]
[374600061,1753369854450,-412.758341,0.000249,7]
[374600062,1753369854459,-151.0,0.000249,7]
[374600063,1753369854468,-151.0,0.000249,7]
[374600064,1753369854479,-151.0,0.000249,7]
[374600065,1753369854488,-151.0,0.000249,7]
[374600066,1753369854499,-1000.0,0.000249,2]
[374600067,1753369854509,-151.0,0.000249,7]
[374600068,1753369854519,-151.0,0.000249,7]
[374600069,1753369854529,-395.835009,0.000249,7]
[374600070,1753369854540,-151.0,0.000249,7]
[374600071,1753369854551,-151.0,0.000249,7]
[374600072,1753369854560,-395.835009,0.000249,7]
[374600073,1753369854570,-186.976971,0.000249,7]
[374600074,1753369854581,-186.976971,0.000249,7]
[374600075,1753369854591,-151.0,0.000249,7]
[374600076,1753369854602,-151.0,0.000249,7]
[374600077,1753369854612,-217.151413,0.000249,7]
[374600078,1753369854622,-151.0,0.000249,7]
[374600079,1753369854632,-203.597045,0.000249,7]
[374600080,1753369854642,-203.597045,0.000249,7]
[374600081,1753369854653,-151.0,0.000249,7]
[374600082,1753369854664,-810045.722257,0.000249,2]
[374600083,1753369854675,-151.708702,0.000249,7]
[374600084,1753369854686,-239.905453,0.000249,7]
[374600085,1753369854697,-239.905453,0.000249,7]
[374600086,1753369854708,-183.586108,0.000249,7]
[374600087,1753369854719,-151.0,0.000249,7]
[374600088,1753369854731,-183.586108,0.000249,7]
[374600089,1753369854741,-151.0,0.000249,7]
[374600090,1753369854751,-1959.962733,0.000249,7]
[374600091,1753369854762,-1959.962733,0.000249,7]
[374600092,1753369854772,-151.0,0.000249,7]
[374600093,1753369854785,-151.0,0.000249,7]
[374600094,1753369854795,-598.0,0.00024926,2]
[374600095,1753369854805,-151.0,0.00024926,2]
[374600096,1753369854816,-306.0,0.00024932,2]
[374600097,1753369854826,-153.0,0.00024932,2]
[374600098,1753369854837,-500.0,0.00024938,2]
[374600099,1753369854848,-1725.0,0.0002494,2]
[374600100,1753369854858,-1725.0,0.00024947,2]
[374600101,1753369854870,-558.0,0.00024961,2]
[374600102,1753369854880,-161.95864789,0.00025,5]
[374600103,1753369854891,-2646.0,0.00025,10]
[374600104,1753369854902,-4953.21025436,0.00025,30]
[374600105,1753369854913,-160.0,0.00025,10]
[374600106,1753369854923,-160.0,0.00025,30]
[374600107,1753369854933,-12624.810388,0.00025,10]
[374600108,1753369854943,-500.0,0.0002502,5]
[374600109,1753369854954,-500.0,0.00025027,5]
[374600110,1753369854964,-500.0,0.00025027,5]
[374600111,1753369854978,-500.0,0.00025027,5]
[374600112,1753369854988,-500.0,0.00025027,5]
[374600113,1753369854999,-800.0,0.00025051,2]
[374600114,1753369855010,-4000.0,0.00025055,4]
[374600115,1753369855020,-2207.52044602,0.00025072,12]
[374600116,1753369855030,-1817.27,0.00025088,2]
[374600117,1753369855040,-622.61,0.00025088,2]
[374600118,1753369855051,-568.76,0.00025089,2]
[374600119,1753369855061,-1345.73,0.00025089,2]
[374600120,1753369855071,-915.03,0.00025089,2]
[374600121,1753369855082,-550.98,0.0002509,2]
[374600122,1753369855092,-2764.12,0.0002509,2]
[374600123,1753369855102,-174.15077693,0.0002509,2]
[374600124,1753369855112,-892.16,0.00025093,2]
[374600125,1753369855122,-520.87,0.00025093,2]
[374600126,1753369855132,-1355.64,0.00025093,2]
[374600127,1753369855143,-728.36,0.00025093,2]
[374600128,1753369855153,-1595.08,0.00025093,2]
[374600129,1753369855163,-470.01,0.00025093,2]
[374600130,1753369855174,-460.0,0.00025093,2]
[374600131,1753369855184,-1066.19961049,0.00025111,2]
[374600132,1753369855194,-2200.0,0.00025159,2]
[374600133,1753369855205,-155.465693,0.00025178,7]
[374600134,1753369855217,-151.0,0.00025189,7]
[374600135,1753369855227,-800.0,0.00025192,2]
[374600136,1753369855238,-598.0,0.000252,2]
[374600137,1753369855248,-151.0,0.000252,2]
[374600138,1753369855259,-205.0,0.000252,2]
[374600139,1753369855270,-206.0,0.000252,2]
[374600140,1753369855284,-1676.14,0.00025205,4]
[374600141,1753369855294,-500.0,0.0002522,5]
[374600142,1753369855304,-484.65292561,0.0002522,5]
[374600143,1753369855314,-500.0,0.0002522,5]
[374600144,1753369855325,-231.28369723,0.00025229,2]
[374600145,1753369855335,-816.39450043,0.00025231,2]
[374600146,1753369855346,-155.465693,0.00025259,10]
[374600147,1753369855358,-2207.52044602,0.00025279,12]
[374600148,1753369855376,-151.0,0.000253,11]
[374600149,1753369855386,-1725.0,0.00025311,7]
[374600150,1753369855396,-811.43970814,0.00025324,2]
[374600151,1753369855406,-823.0,0.00025344,2]
[374600152,1753369855417,-1817.27,0.00025362,2]
[374600153,1753369855427,-622.61,0.00025362,2]
[374600154,1753369855437,-568.76,0.00025363,2]
[374600155,1753369855448,-1345.73,0.00025363,2]
[374600156,1753369855458,-915.03,0.00025363,2]
[374600157,1753369855469,-550.98,0.00025364,2]
[374600158,1753369855479,-2764.12,0.00025364,2]
[374600159,1753369855488,-892.16,0.00025367,2]
[374600160,1753369855499,-520.87,0.00025367,2]
[374600161,1753369855510,-1355.64,0.00025367,2]
[374600162,1753369855520,-728.36,0.00025367,2]
[374600163,1753369855532,-1595.08,0.00025367,2]
[374600164,1753369855542,-470.01,0.00025367,2]
[374600165,1753369855552,-460.0,0.00025367,2]
[374600166,1753369855563,-500.0,0.00025373,2]
[374600167,1753369855574,-1657.209152,0.0002538,5]
[374600168,1753369855584,-1130.239946,0.0002538,5]
[374600169,1753369855595,-5000.0,0.0002539,30]
[374600170,1753369855605,-5000.0,0.0002539,30]
[374600171,1753369855616,-5000.0,0.0002539,30]
[374600172,1753369855626,-5000.0,0.0002539,30]
[374600173,1753369855637,-5000.0,0.0002539,30]
[374600174,1753369855648,-5000.0,0.0002539,30]
[374600175,1753369855659,-5000.0,0.0002539,30]
[374600176,1753369855669,-1210.54750037,0.00025398,14]
[374600177,1753369855681,-151.0,0.00025399,7]
[374600178,1753369855691,-151.0,0.00025399,7]
[374600179,1753369855703,-151.0,0.00025399,7]
[374600180,1753369855714,-151.0,0.00025399,7]
[374600181,1753369855850,-151.0,0.00025399,7]
[374600182,1753369855860,-158.500408,0.00025399,7]
[374600183,1753369855870,-151.0,0.00025399,7]
[374600184,1753369855880,-151.0,0.00025399,7]
[374600185,1753369855890,-151.0,0.00025399,7]
[374600186,1753369855900,-158.500408,0.00025399,7]
[374600187,1753369855910,-151.0,0.00025399,7]
[374600188,1753369855921,-151.0,0.00025399,7]
[374600189,1753369855930,-2000.0,0.000254,2]
[374600190,1753369855941,-2000.0,0.000254,2]
[374600191,1753369855956,-2108.37,0.000254,7]
[374600192,1753369855966,-1000.0,0.000254,5]
[374600193,1753369855976,-1000.0,0.000254,5]
[374600194,1753369855986,-1000.0,0.000254,2]
[374600195,1753369855996,-150.0,0.000254,2]
[374600196,1753369856006,-643.0,0.000254,2]
[374600197,1753369856015,-203.23134,0.000254,2]
[374600198,1753369856025,-213.0,0.0002541,14]
[374600199,1753369856035,-500.0,0.00025416,2]
[374600200,1753369856045,-171.57040078,0.00025425,2]
[374600201,1753369856055,-180.71735524,0.00025432,2]
[374600202,1753369856065,-500.0,0.00025448,2]
[374600203,1753369856075,-155.465693,0.00025456,2]
[374600204,1753369856084,-1725.0,0.00025457,2]
[374600205,1753369856094,-500.0,0.00025458,2]
[374600206,1753369856104,-475.27319,0.00025464,7]
[374600207,1753369856115,-475.27319,0.00025464,7]
[374600208,1753369856125,-475.27319,0.00025464,7]
[374600209,1753369856135,-475.27319,0.00025464,7]
[374600210,1753369856146,-475.27319,0.00025464,7]
[374600211,1753369856165,-475.27319,0.00025464,7]
[374600212,1753369856186,-475.27319,0.00025464,7]
[374600213,1753369856208,-475.27319,0.00025464,7]
[374600214,1753369856229,-475.273196,0.00025464,7]
[374600215,1753369856250,-151.0,0.00025464,7]
[374600216,1753369856272,-151.0,0.00025464,7]
[374600217,1753369856295,-151.0,0.00025464,7]
[374600218,1753369856317,-151.0,0.00025464,7]
[374600219,1753369856331,-300.182397,0.00025464,7]
[374600220,1753369856342,-151.0,0.00025464,7]
[374600221,1753369856352,-151.0,0.00025464,7]
[374600222,1753369856362,-151.0,0.00025464,7]
[374600223,1753369856371,-151.0,0.00025464,7]
[374600224,1753369856382,-283.091723,0.00025464,7]
[374600225,1753369856391,-151.0,0.00025464,7]
[374600226,1753369856401,-151.0,0.00025464,7]
[374600227,1753369856410,-151.0,0.00025464,7]
[374600228,1753369856420,-151.0,0.00025464,7]
[374600229,1753369856430,-151.0,0.00025464,7]
[374600230,1753369856444,-151.0,0.00025464,7]
[374600231,1753369856453,-151.0,0.00025464,7]
[374600232,1753369856463,-151.0,0.00025464,7]
[374600233,1753369856472,-151.0,0.00025464,7]
[374600234,1753369856482,-151.0,0.00025464,7]
[374600235,1753369856491,-151.0,0.00025464,7]
[374600236,1753369856501,-151.0,0.00025464,7]
[374600237,1753369856511,-151.0,0.00025464,7]
[374600238,1753369856520,-158.500408,0.00025464,7]
[374600239,1753369856531,-151.0,0.00025464,7]
[374600240,1753369856541,-158.500408,0.00025464,7]
[374600241,1753369856550,-151.0,0.00025464,7]
[374600242,1753369856560,-158.500408,0.00025464,7]
[374600243,1753369856570,-151.0,0.00025464,7]
[374600244,1753369856579,-158.500408,0.00025464,7]
[374600245,1753369856589,-151.0,0.00025464,7]
[374600246,1753369856599,-158.500408,0.00025464,7]
[374600247,1753369856608,-151.0,0.00025464,7]
[374600248,1753369856618,-158.500408,0.00025464,7]
[374600249,1753369856627,-151.0,0.00025464,7]
[374600250,1753369856637,-158.500408,0.00025464,7]
[374600251,1753369856647,-151.0,0.00025464,7]
[374600252,1753369856658,-151.0,0.00025464,7]
[374600253,1753369856668,-158.500408,0.00025464,7]
[374600254,1753369856678,-151.0,0.00025464,7]
[374600255,1753369856687,-151.0,0.00025464,7]
[374600256,1753369856698,-151.0,0.00025464,7]
[374600257,1753369856708,-151.0,0.00025464,7]
[374600258,1753369856718,-158.500408,0.00025464,7]
[374600259,1753369856728,-153.013182,0.00025464,7]
[374600260,1753369856738,-158.500408,0.00025464,7]
[374600261,1753369856748,-151.0,0.00025464,7]
[374600262,1753369856757,-151.0,0.00025464,7]
[374600263,1753369856767,-158.500408,0.00025464,7]
[374600264,1753369856777,-151.0,0.00025464,7]
[374600265,1753369856790,-151.0,0.00025464,7]
[374600266,1753369856799,-158.500408,0.00025464,7]
[374600267,1753369856809,-151.0,0.00025464,7]
[374600268,1753369856819,-151.0,0.00025464,7]
[374600269,1753369856830,-151.0,0.00025464,7]
[374600270,1753369856839,-158.500408,0.00025464,7]
[374600271,1753369856848,-292.919868,0.00025464,7]
[374600272,1753369856857,-151.0,0.00025464,7]
[374600273,1753369856867,-158.500408,0.00025464,7]
[374600274,1753369856877,-158.500408,0.00025464,7]
[374600275,1753369856886,-158.500408,0.00025464,7]
[374600276,1753369856897,-151.0,0.00025464,7]
[374600277,1753369856907,-158.500408,0.00025464,7]
[374600278,1753369856917,-151.0,0.00025464,7]
[374600279,1753369856927,-158.500412,0.00025464,7]
[374600280,1753369856937,-278.4946,0.00025464,7]
[374600281,1753369856947,-151.0,0.00025464,7]
[374600282,1753369856957,-151.0,0.00025464,7]
[374600283,1753369856967,-151.0,0.00025464,7]
[374600284,1753369856977,-151.0,0.00025464,7]
[374600285,1753369856987,-151.0,0.00025464,7]
[374600286,1753369856997,-151.0,0.00025464,7]
[374600287,1753369857008,-151.0,0.00025464,7]
[374600288,1753369857018,-151.0,0.00025464,7]
[374600289,1753369857027,-151.0,0.00025464,7]
[374600290,1753369857038,-151.0,0.00025464,7]
[374600291,1753369857048,-151.0,0.00025464,7]
[374600292,1753369857058,-151.0,0.00025464,7]
[374600293,1753369857068,-151.0,0.00025464,7]
[374600294,1753369857077,-151.0,0.00025464,7]
[374600295,1753369857087,-151.0,0.00025464,7]
[374600296,1753369857097,-151.0,0.00025464,7]
[374600297,1753369857107,-151.0,0.00025464,7]
[374600298,1753369857116,-151.0,0.00025464,7]
[374600299,1753369857125,-151.0,0.00025464,7]
[374600300,1753369857135,-151.0,0.00025464,7]
[374600301,1753369857144,-151.0,0.00025464,7]
[374600302,1753369857154,-151.0,0.00025464,7]
[374600303,1753369857164,-154.789083,0.00025464,7]
[374600304,1753369857173,-336.322816,0.00025464,7]
[374600305,1753369857182,-336.322816,0.00025464,7]
[374600306,1753369857192,-336.322816,0.00025464,7]
[374600307,1753369857202,-336.322816,0.00025464,7]
[374600308,1753369857216,-336.322816,0.00025464,7]
[374600309,1753369857225,-336.322816,0.00025464,7]
[374600310,1753369857235,-336.322816,0.00025464,7]
[374600311,1753369857245,-336.322816,0.00025464,7]
[374600312,1753369857255,-336.322816,0.00025464,7]
[374600313,1753369857264,-336.322816,0.00025464,7]
[374600314,1753369857274,-336.322816,0.00025464,7]
[374600315,1753369857285,-336.322825,0.00025464,7]
[374600316,1753369857294,-500.0,0.00025471,2]
[374600317,1753369857304,-150.14227199,0.00025473,2]
[374600318,1753369857313,-598.0,0.00025474,2]
[374600319,1753369857322,-151.98645579,0.00025474,2]
[374600320,1753369857332,-2207.52044602,0.00025486,13]
[374600321,1753369857341,-151.0,0.00025489,7]
[374600322,1753369857350,-151.0,0.00025489,7]
[374600323,1753369857359,-151.0,0.00025489,7]
[374600324,1753369857368,-151.0,0.00025489,7]
[374600325,1753369857379,-151.0,0.00025489,7]
[374600326,1753369857389,-151.0,0.00025489,7]
[374600327,1753369857398,-151.0,0.00025489,7]
[374600328,1753369857407,-151.0,0.00025489,7]
[374600329,1753369857418,-151.0,0.00025489,7]
[374600330,1753369857427,-151.0,0.00025489,7]
[374600331,1753369857436,-182.9097,0.00025489,7]
[374600332,1753369857446,-151.0,0.00025489,7]
[374600333,1753369857458,-153.346447,0.00025489,7]
[374600334,1753369857467,-151.0,0.00025489,7]
[374600335,1753369857477,-151.0,0.00025489,7]
[374600336,1753369857486,-151.0,0.00025489,7]
[374600337,1753369857495,-151.0,0.00025489,7]
[374600338,1753369857505,-151.0,0.00025489,7]
[374600339,1753369857515,-151.0,0.00025489,7]
[374600340,1753369857525,-160.638508,0.00025489,7]
[374600341,1753369857536,-151.303853,0.00025489,7]
[374600342,1753369857547,-151.0,0.00025489,7]
[374600343,1753369857556,-237.186942,0.00025489,7]
[374600344,1753369857565,-151.242856,0.00025489,7]
[374600345,1753369857575,-151.0,0.00025489,7]
[374600346,1753369857584,-151.0,0.00025489,7]
[374600347,1753369857594,-151.0,0.00025489,7]
[374600348,1753369857603,-151.0,0.00025489,7]
[374600349,1753369857612,-151.0,0.00025489,7]
[374600350,1753369857621,-151.0,0.00025489,7]
[374600351,1753369857630,-151.0,0.00025489,7]
[374600352,1753369857639,-275.33301,0.00025489,7]
[374600353,1753369857648,-151.0,0.00025489,7]
[374600354,1753369857658,-151.733625,0.00025489,7]
[374600355,1753369857667,-151.0,0.0002549,7]
[374600356,1753369857676,-152.530567,0.0002549,7]
[374600357,1753369857687,-151.0,0.0002549,7]
[374600358,1753369857696,-151.0,0.0002549,7]
[374600359,1753369857705,-151.0,0.0002549,7]
[374600360,1753369857715,-151.0,0.0002549,7]
[374600361,1753369857725,-151.0,0.0002549,7]
[374600362,1753369857734,-151.0,0.0002549,7]
[374600363,1753369857743,-293.925083,0.0002549,7]
[374600364,1753369857752,-151.0,0.0002549,7]
[374600365,1753369857761,-151.0,0.0002549,7]
[374600366,1753369857770,-151.181492,0.0002549,7]
[374600367,1753369857779,-151.0,0.0002549,7]
[374600368,1753369857789,-151.0,0.0002549,7]
[374600369,1753369857799,-151.0,0.0002549,7]
[374600370,1753369857808,-151.0,0.0002549,7]
[374600371,1753369857818,-151.0,0.0002549,7]
[374600372,1753369857827,-151.0,0.0002549,7]
[374600373,1753369857837,-151.0,0.0002549,7]
[374600374,1753369857846,-151.0,0.0002549,7]
[374600375,1753369857855,-151.0,0.0002549,7]
[374600376,1753369857865,-151.0,0.0002549,7]
[374600377,1753369857874,-184.048272,0.0002549,7]
[374600378,1753369857883,-184.048272,0.0002549,7]
[374600379,1753369857893,-184.048272,0.0002549,7]
[374600380,1753369857903,-184.048272,0.0002549,7]
[374600381,1753369857913,-184.048272,0.0002549,7]
[374600382,1753369857923,-184.048262,0.0002549,7]
[374600383,1753369857933,-315.170366,0.0002549,7]
[374600384,1753369857943,-315.170366,0.0002549,7]
[374600385,1753369857952,-315.170366,0.0002549,7]
[374600386,1753369857962,-315.170366,0.0002549,7]
[374600387,1753369857972,-315.170366,0.0002549,7]
[374600388,1753369857982,-315.170366,0.0002549,7]
[374600389,1753369857992,-315.170366,0.0002549,7]
[374600390,1753369858001,-315.170366,0.0002549,7]
[374600391,1753369858011,-315.170366,0.0002549,7]
[374600392,1753369858022,-315.170366,0.0002549,7]
[374600393,1753369858033,-315.170366,0.0002549,7]
[374600394,1753369858043,-315.170366,0.0002549,7]
[374600395,1753369858053,-315.170366,0.0002549,7]
[374600396,1753369858063,-315.170366,0.0002549,7]
[374600397,1753369858073,-315.170366,0.0002549,7]
[374600398,1753369858084,-315.170366,0.0002549,7]
[374600399,1753369858094,-315.170366,0.0002549,7]
[374600400,1753369858105,-315.170366,0.0002549,7]
[374600401,1753369858116,-315.170366,0.0002549,7]
[374600402,1753369858126,-315.170368,0.0002549,7]
[374600403,1753369858136,-151.0,0.00025494,7]
[374600404,1753369858147,-151.0,0.00025494,7]
[374600405,1753369858162,-151.0,0.00025494,7]
[374600406,1753369858186,-151.0,0.00025494,7]
[374600407,1753369858204,-151.0,0.00025494,7]
[374600408,1753369858220,-151.0,0.00025494,7]
[374600409,1753369858230,-151.0,0.00025494,7]
[374600410,1753369858240,-151.0,0.00025494,7]
[374600411,1753369858252,-151.0,0.00025494,7]
[374600412,1753369858262,-151.0,0.00025494,7]
[374600413,1753369858271,-174.129262,0.00025494,7]
[374600414,1753369858281,-151.0,0.00025494,7]
[374600415,1753369858291,-151.0,0.00025494,7]
[374600416,1753369858301,-151.0,0.00025494,7]
[374600417,1753369858310,-151.0,0.00025494,7]
[374600418,1753369858320,-151.0,0.00025494,7]
[374600419,1753369858330,-151.0,0.00025494,7]
[374600420,1753369858339,-151.0,0.00025494,7]
[374600421,1753369858348,-151.0,0.00025494,7]
[374600422,1753369858358,-151.0,0.00025494,7]
[374600423,1753369858367,-151.0,0.00025494,7]
[374600424,1753369858383,-151.0,0.00025494,7]
[374600425,1753369858393,-151.0,0.00025494,7]
[374600426,1753369858402,-151.0,0.00025494,7]
[374600427,1753369858412,-228.098356,0.00025494,7]
[374600428,1753369858421,-151.0,0.00025494,7]
[374600429,1753369858531,-151.0,0.00025494,7]
[374600430,1753369858542,-151.0,0.00025494,7]
[374600431,1753369858553,-151.0,0.00025494,7]
[374600432,1753369858562,-151.0,0.00025494,7]
[374600433,1753369858572,-151.0,0.00025494,7]
[374600434,1753369858582,-151.0,0.00025494,7]
[374600435,1753369858592,-151.0,0.00025494,7]
[374600436,1753369858602,-151.183589,0.00025494,7]
[374600437,1753369858613,-151.0,0.00025494,7]
[374600438,1753369858623,-151.0,0.00025494,7]
[374600439,1753369858634,-151.0,0.00025494,7]